fUST/lending_fUST_20250327
["ID","MTS","AMOUNT","RATE_DAILY","PERIOD"]
[356726789,1743041432617,-165.57395167,0.00025421,2]
[356726790,1743041432626,-500.0,0.00025434,2]
[356726791,1743041432635,-199.29875212,0.00025434,2]
[356726792,1743041432645,-128828.05726114,0.00025435,2]
[356726793,1743041432669,-92355.71852881,0.00025435,2]
[356726831,1743041443262,-2000.0,0.00025435,2]
[356726832,1743041443317,-8775.85086026,0.00025435,2]
[356726860,1743041617371,3080.47140673,0.00025,120]
[356726909,1743042438146,-184.2366969,0.00010959,2]
[356726910,1743042438168,-288.52045261,0.00013957,2]
[356726911,1743042439092,-211.47954739,0.00013957,2]
[356726912,1743042439114,-500.0,0.00015539,2]
[356726913,1743042439136,-42.29829184,0.00017744,2]
[356726914,1743042450144,-500.0,0.00013462,2]
[356726915,1743042450165,-500.0,0.000141,2]
[356726916,1743042450187,-114.65067264,0.00014165,2]
[356726926,1743042525907,150.99999951,0.0002,120]
[356726931,1743042547166,-170.667703,0.00010959,2]
[356726932,1743042547188,-6117.27855393,0.000125,2]
[356726955,1743042632360,-541.15,0.00010959,2]
[356726956,1743042632370,-450.96,0.00010959,2]
[356726957,1743042632379,-375.8,0.00010959,2]
[356726958,1743042632389,-2885.76340642,0.000125,2]
[356726959,1743042632399,-385.34932736,0.00014165,2]
[356726960,1743042632408,-500.0,0.0001423,2]
[356726961,1743042632418,-300.0,0.00014972,2]
[356726962,1743042632428,-500.0,0.00014973,2]
[356726963,1743042632439,-500.0,0.00014973,2]
[356726964,1743042632449,-504.26359572,0.00014973,2]
[356726965,1743042632458,-502.16772906,0.00014973,2]
[356726966,1743042632468,-500.0,0.00014973,2]
[356726967,1743042632478,-500.0,0.00014973,2]
[356726968,1743042632487,-339.35404887,0.00014973,2]
[356726969,1743042632497,-500.0,0.00014973,2]
[356726970,1743042632507,-500.0,0.00014973,2]
[356726971,1743042632516,-500.0,0.00014973,2]
[356726972,1743042632526,-504.02827206,0.00014973,2]
[356726973,1743042632535,-500.0,0.00014973,2]
[356726974,1743042632544,-43000.0,0.00015,2]
[356726975,1743042632554,-15961.05772971,0.00015,2]
[356726976,1743042632564,-500.0,0.0001517,2]
[356726977,1743042632574,-500.0,0.00015894,2]
[356726978,1743042632584,-500.0,0.00016104,2]
[356726979,1743042632594,-500.0,0.00016118,2]
[356726980,1743042632604,-420.0,0.00016386,2]
[356726981,1743042632613,-170.667703,0.00016438,2]
[356726982,1743042632623,-500.0,0.00016948,2]
[356726983,1743042632632,-250.27333321,0.00017,2]
[356726984,1743042632641,-7178.21153915,0.00017,2]
[356726985,1743042632651,-10000.0,0.0001734,2]
[356726986,1743042632661,-2498.20952131,0.000176,2]
[356726987,1743042632670,-2498.20952118,0.000176,2]
[356726988,1743042632679,-2498.20952118,0.000176,2]
[356726989,1743042632689,-5000.0,0.0001788,2]
[356726990,1743042632698,-587.0,0.00017934,2]
[356726991,1743042632708,-2498.20952118,0.00018383,2]
[356726992,1743042632722,-500.0,0.00018683,2]
[356726993,1743042632732,-9256.65445827,0.00018683,2]
[356726994,1743042632741,-500.0,0.00018873,2]
[356726995,1743042632751,-500.0,0.00018873,2]
[356726996,1743042632761,-500.0,0.00018873,2]
[356726997,1743042632770,-500.0,0.00018873,2]
[356726998,1743042632780,-526.85274955,0.00018873,2]
[356726999,1743042632790,-500.0,0.00018873,2]
[356727000,1743042632800,-500.0,0.00018873,2]
[356727001,1743042632809,-500.0,0.00018873,2]
[356727002,1743042632819,-500.01906411,0.00018899,2]
[356727003,1743042632829,-529.90378109,0.00018899,2]
[356727004,1743042632839,-500.0,0.00018899,2]
[356727005,1743042632849,-500.0,0.00018899,2]
[356727006,1743042632859,-258.65227266,0.00018899,2]
[356727007,1743042632869,-500.0,0.00018899,2]
[356727008,1743042632879,-500.0,0.00018899,2]
[356727009,1743042632888,-500.0,0.00018899,2]
[356727010,1743042632898,-500.0,0.00018899,2]
[356727011,1743042632908,-500.0,0.00018899,2]
[356727012,1743042632917,-500.0,0.00018899,2]
[356727013,1743042632927,-500.0,0.00018899,2]
[356727014,1743042632936,-500.0,0.00018899,2]
[356727015,1743042632946,-500.0,0.00018899,2]
[356727016,1743042632955,-500.0,0.00018899,2]
[356727017,1743042632965,-500.0,0.00018899,2]
[356727018,1743042632975,-500.0,0.00018899,2]
[356727019,1743042632984,-500.0,0.00018899,2]
[356727020,1743042632994,-500.0,0.00018899,2]
[356727021,1743042633003,-500.0,0.00018899,2]
[356727022,1743042633012,-500.0,0.00018899,2]
[356727023,1743042633022,-500.0,0.00018899,2]
[356727024,1743042633032,-500.0,0.00018899,2]
[356727025,1743042633041,-500.0,0.00018899,2]
[356727026,1743042633051,-500.0,0.00018899,2]
[356727027,1743042633061,-500.0,0.00018899,2]
[356727028,1743042633071,-500.0,0.00018899,2]
[356727029,1743042633084,-500.0,0.00018899,2]
[356727030,1743042633094,-500.0,0.00018899,2]
[356727031,1743042633104,-500.0,0.00018899,2]
[356727032,1743042633114,-500.0,0.00018899,2]
[356727033,1743042633125,-500.0,0.00018899,2]
[356727034,1743042633135,-500.0,0.00018899,2]
[356727035,1743042633145,-500.0,0.00018899,2]
[356727036,1743042633156,-500.0,0.00018899,2]
[356727037,1743042633166,-500.0,0.00018899,2]
[356727038,1743042633178,-500.0,0.00018899,2]
[356727039,1743042633188,-500.0,0.00018899,2]
[356727040,1743042633198,-500.0,0.00018899,2]
[356727041,1743042633207,-500.0,0.00018899,2]
[356727042,1743042633217,-500.0,0.00018899,2]
[356727043,1743042633227,-500.0,0.00018899,2]
[356727044,1743042633236,-184.51110387,0.00018899,2]
[356727045,1743042633246,-500.0,0.00018899,2]
[356727046,1743042633256,-500.0,0.00018899,2]
[356727047,1743042633267,-500.0,0.00018899,2]
[356727048,1743042633277,-500.0,0.00018899,2]
[356727049,1743042633287,-500.0,0.00018899,2]
[356727050,1743042633297,-500.0,0.00018899,2]
[356727051,1743042633306,-500.0,0.00018899,2]
[356727052,1743042633316,-500.0,0.00018899,2]
[356727053,1743042633326,-500.0,0.00018899,2]
[356727054,1743042633336,-500.0,0.00018899,2]
[356727055,1743042633441,-500.0,0.00018899,2]
[356727056,1743042633453,-500.0,0.00018899,2]
[356727057,1743042633463,-500.0,0.00018899,2]
[356727058,1743042633473,-500.0,0.00018899,2]
[356727059,1743042633482,-500.0,0.00018899,2]
[356727060,1743042633492,-500.0,0.00018899,2]
[356727061,1743042633502,-500.0,0.00018899,2]
[356727062,1743042633511,-500.0,0.00018899,2]
[356727063,1743042633521,-500.0,0.00018899,2]
[356727064,1743042633530,-500.0,0.00018899,2]
[356727065,1743042633540,-500.0,0.00018899,2]
[356727066,1743042633550,-500.0,0.00018899,2]
[356727067,1743042633559,-500.0,0.00018899,2]
[356727068,1743042633568,-500.0,0.00018899,2]
[356727069,1743042633579,-500.0,0.00018899,2]
[356727070,1743042633588,-500.0,0.00018899,2]
[356727071,1743042633597,-500.0,0.00018899,2]
[356727072,1743042633606,-500.0,0.00018899,2]
[356727073,1743042633616,-500.0,0.00018899,2]
[356727074,1743042633625,-400.0,0.00018899,2]
[356727075,1743042633634,-500.0,0.00018899,2]
[356727076,1743042633644,-500.0,0.00018899,2]
[356727077,1743042633654,-500.0,0.00018899,2]
[356727078,1743042633663,-500.0,0.00018899,2]
[356727079,1743042633672,-500.0,0.00018899,2]
[356727080,1743042633682,-500.0,0.00018899,2]
[356727081,1743042633691,-500.0,0.00018899,2]
[356727082,1743042633700,-500.0,0.00018899,2]
[356727083,1743042633710,-500.0,0.00018899,2]
[356727084,1743042633720,-500.0,0.00018899,2]
[356727085,1743042633730,-500.0,0.00018899,2]
[356727086,1743042633739,-500.0,0.00018899,2]
[356727087,1743042633749,-500.0,0.00018899,2]
[356727088,1743042633758,-586.13423576,0.00018899,2]
[356727089,1743042633768,-586.13423576,0.00018899,2]
[356727090,1743042633778,-586.13423576,0.00018899,2]
[356727091,1743042633788,-586.13423576,0.00018899,2]
[356727092,1743042633797,-586.13423576,0.00018899,2]
[356727093,1743042633808,-586.13423576,0.00018899,2]
[356727094,1743042633818,-586.13423576,0.00018899,2]
[356727095,1743042633827,-586.13423576,0.00018899,2]
[356727096,1743042633837,-586.13423576,0.00018899,2]
[356727097,1743042633847,-586.13423576,0.00018899,2]
[356727098,1743042633856,-586.13423576,0.00018899,2]
[356727099,1743042633866,-586.13423576,0.00018899,2]
[356727100,1743042633876,-586.13423576,0.00018899,2]
[356727101,1743042633886,-586.13423576,0.00018899,2]
[356727102,1743042633894,-586.13423576,0.00018899,2]
[356727103,1743042633903,-586.13423576,0.00018899,2]
[356727104,1743042633912,-586.13423576,0.00018899,2]
[356727105,1743042633921,-586.13423576,0.00018899,2]
[356727106,1743042633932,-586.13423576,0.00018899,2]
[356727107,1743042633941,-586.13423576,0.00018899,2]
[356727108,1743042633951,-586.13423576,0.00018899,2]
[356727109,1743042633961,-586.13423576,0.00018899,2]
[356727110,1743042633970,-586.13423576,0.00018899,2]
[356727111,1743042633980,-586.13423576,0.00018899,2]
[356727112,1743042633990,-586.13423576,0.00018899,2]
[356727113,1743042633999,-586.13423576,0.00018899,2]
[356727114,1743042634009,-586.13423576,0.00018899,2]
[356727115,1743042634018,-586.13423576,0.00018899,2]
[356727116,1743042634028,-586.13423576,0.00018899,2]
[356727117,1743042634038,-586.13423576,0.00018899,2]
[356727118,1743042634047,-586.13423576,0.00018899,2]
[356727119,1743042634057,-586.13423576,0.00018899,2]
[356727120,1743042634066,-586.13423576,0.00018899,2]
[356727121,1743042634078,-586.13423576,0.00018899,2]
[356727122,1743042634088,-586.13423576,0.00018899,2]
[356727123,1743042634097,-586.13423576,0.00018899,2]
[356727124,1743042634107,-586.13423576,0.00018899,2]
[356727125,1743042634116,-586.13423576,0.00018899,2]
[356727126,1743042634127,-586.13423576,0.00018899,2]
[356727127,1743042634137,-586.13423576,0.00018899,2]
[356727128,1743042634147,-586.13423576,0.00018899,2]
[356727129,1743042634157,-586.13423576,0.00018899,2]
[356727130,1743042634167,-586.13423576,0.00018899,2]
[356727131,1743042634177,-586.13423576,0.00018899,2]
[356727132,1743042634187,-586.13423576,0.00018899,2]
[356727133,1743042634197,-500.0,0.00018899,2]
[356727134,1743042634206,-468.50672163,0.00018899,2]
[356727135,1743042634216,-500.0,0.00018899,2]
[356727136,1743042634225,-500.0,0.00018899,2]
[356727137,1743042634235,-500.0,0.00018899,2]
[356727138,1743042634245,-500.0,0.00018899,2]
[356727139,1743042634254,-1243.13235168,0.00018899,2]
[356727140,1743042634264,-1243.13235168,0.00018899,2]
[356727141,1743042634274,-1243.13235168,0.00018899,2]
[356727142,1743042634284,-1243.13235168,0.00018899,2]
[356727143,1743042634294,-1243.13235168,0.00018899,2]
[356727144,1743042634303,-1243.13235168,0.00018899,2]
[356727145,1743042634313,-1243.13235168,0.00018899,2]
[356727146,1743042634323,-1243.13235168,0.00018899,2]
[356727147,1743042634333,-1243.13235168,0.00018899,2]
[356727148,1743042634342,-1243.13235168,0.00018899,2]
[356727149,1743042634352,-1243.13235168,0.00018899,2]
[356727150,1743042634362,-1243.13235168,0.00018899,2]
[356727151,1743042634371,-1243.13235168,0.00018899,2]
[356727152,1743042634381,-1243.13235168,0.00018899,2]
[356727153,1743042634390,-1243.13235168,0.00018899,2]
[356727154,1743042634399,-1243.13235168,0.00018899,2]
[356727155,1743042634409,-1243.13235168,0.00018899,2]
[356727156,1743042634419,-1243.13235168,0.00018899,2]
[356727157,1743042634428,-1243.13235168,0.00018899,2]
[356727158,1743042634438,-1243.13235168,0.00018899,2]
[356727159,1743042634447,-1243.13235168,0.00018899,2]
[356727160,1743042634457,-1243.13235168,0.00018899,2]
[356727161,1743042634466,-1243.13235168,0.00018899,2]
[356727162,1743042634475,-1243.13235168,0.00018899,2]
[356727163,1743042634485,-1243.13235168,0.00018899,2]
[356727164,1743042634495,-1243.13235168,0.00018899,2]
[356727165,1743042634504,-1243.13235168,0.00018899,2]
[356727166,1743042634513,-1243.13235168,0.00018899,2]
[356727167,1743042634523,-1243.13235168,0.00018899,2]
[356727168,1743042634532,-1243.13235168,0.00018899,2]
[356727169,1743042634542,-1243.13235168,0.00018899,2]
[356727170,1743042634551,-1243.13235168,0.00018899,2]
[356727171,1743042634561,-1243.13235168,0.00018899,2]
[356727172,1743042634571,-1243.13235168,0.00018899,2]
[356727173,1743042634580,-1243.13235168,0.00018899,2]
[356727174,1743042634590,-1243.13235168,0.00018899,2]
[356727175,1743042634599,-573.65504796,0.00018899,2]
[356727176,1743042634609,-573.65504796,0.00018899,2]
[356727177,1743042634619,-573.65504796,0.00018899,2]
[356727178,1743042634629,-573.65504796,0.00018899,2]
[356727179,1743042634638,-573.65504796,0.00018899,2]
[356727180,1743042634648,-573.65504796,0.00018899,2]
[356727181,1743042634657,-573.65504796,0.00018899,2]
[356727182,1743042634667,-573.65504796,0.00018899,2]
[356727183,1743042634676,-573.65504796,0.00018899,2]
[356727184,1743042634687,-1243.13235173,0.00018899,2]
[356727185,1743042634697,-1243.13235173,0.00018899,2]
[356727186,1743042634707,-1243.13235173,0.00018899,2]
[356727187,1743042634716,-1243.13235171,0.00018899,2]
[356727188,1743042634791,-2498.20952118,0.0001921,2]
[356727189,1743042634801,-500.0,0.00019446,2]
[356727190,1743042634810,-823.0,0.00019628,2]
[356727191,1743042634819,-500.0,0.00019832,2]
[356727192,1743042634829,-160.0,0.0002,3]
[356727193,1743042634839,-2498.20952118,0.00020038,2]
[356727194,1743042634848,-500.0,0.00020228,2]
[356727195,1743042634858,-8850.8172454,0.00020369,2]
[356727196,1743042634867,-152.332248,0.00020369,2]
[356727197,1743042634877,-1000.0,0.00020452,2]
[356727198,1743042634887,-1000.0,0.00020452,2]
[356727199,1743042634897,-503.11510052,0.00020452,2]
[356727200,1743042634906,-1000.0,0.00020452,2]
[356727201,1743042634915,-1000.0,0.00020452,2]
[356727202,1743042634924,-1000.0,0.00020452,2]
[356727203,1743042634935,-1000.0,0.00020452,2]
[356727204,1743042634945,-1000.0,0.00020452,2]
[356727205,1743042634954,-626.025778,0.00020483,2]
[356727206,1743042634964,-714.13567783,0.00020577,2]
[356727207,1743042634973,-503.10123162,0.00020673,2]
[356727208,1743042634983,-505.49020027,0.00020673,2]
[356727209,1743042634993,-501.44288787,0.00020673,2]
[356727210,1743042635003,-500.57470929,0.00020673,2]
[356727211,1743042635013,-3186.2492162,0.00020678,2]
[356727212,1743042635023,-2498.20952118,0.00020866,3]
[356727213,1743042635033,-151.0,0.00021362,2]
[356727214,1743042635042,-600.0,0.00021362,2]
[356727215,1743042635052,-622.2,0.00021417,2]
[356727216,1743042635062,-645.2214,0.00021472,2]
[356727217,1743042635072,-1027.0,0.00021483,2]
[356727218,1743042635085,-1200.0,0.00021527,2]
[356727219,1743042635095,-500.0,0.00021546,2]
[356727220,1743042635104,-714.13567779,0.00021633,2]
[356727221,1743042635113,-500.0,0.00021684,2]
[356727222,1743042635125,-2498.20952118,0.00021693,3]
[356727223,1743042635136,-500.0,0.00021824,2]
[356727224,1743042635146,-156.587,0.0002191,2]
[356727225,1743042635156,-170.667703,0.00021918,2]
[356727226,1743042635167,-500.0,0.00022044,2]
[356727227,1743042635177,-250.0,0.00022188,2]
[356727228,1743042635187,-305.96933866,0.00022458,2]
[356727229,1743042635196,-461.50356183,0.00022488,2]
[356727230,1743042635205,-2498.20952118,0.00022521,4]
[356727231,1743042635215,-714.13567779,0.00022689,2]
[356727232,1743042635224,-500.0,0.00022893,2]
[356727233,1743042635235,-2498.20952118,0.00023348,4]
[356727234,1743042635244,-714.13567779,0.00023744,2]
[356727235,1743042635254,-355.80740522,0.000238,2]
[356727236,1743042635263,-500.0,0.00023973,2]
[356727237,1743042635273,-500.0,0.00023973,2]
[356727238,1743042635283,-959.68938482,0.0002399,2]
[356727239,1743042635292,-2590.29793756,0.0002399,2]
[356727240,1743042635301,-3538.64317995,0.0002399,2]
[356727241,1743042635476,-467.09929999,0.0002399,2]
[356727242,1743042635492,-757.79047172,0.0002399,2]
[356727259,1743042638118,-189.34959534,0.00016999,2]
[356727260,1743042638128,-500.0,0.00016999,2]
[356727261,1743042638138,-500.0,0.00016999,2]
[356727262,1743042638148,-278.44113682,0.00016999,2]
[356727263,1743042638160,-1890.02078884,0.0002399,2]
[356727264,1743042638177,-5252.57216402,0.0002399,2]
[356727281,1743042643369,-100.0269384,0.0002399,2]
[356727318,1743042646085,200.0,0.00012,3]
[356727319,1743042646288,-88323.38286098,0.0002399,2]
[356727320,1743042646297,-151.0,0.0002399,7]
[356727321,1743042646307,-500.0,0.0002407,2]
[356727322,1743042646316,-500.0,0.0002415,2]
[356727323,1743042646325,-313.17,0.00024166,3]
[356727324,1743042646334,-2498.20952118,0.00024176,5]
[356727325,1743042646343,-1000.0,0.00024352,2]
[356727326,1743042646352,-541.08288931,0.00024352,2]
[356727327,1743042646361,-1002.31258614,0.00024352,2]
[356727328,1743042646370,-1000.0,0.00024352,2]
[356727329,1743042646380,-1000.0,0.00024352,2]
[356727330,1743042646388,-1000.0,0.00024352,2]
[356727331,1743042646397,-1000.0,0.00024352,2]
[356727332,1743042646406,-1348.8889667,0.0002457,2]
[356727333,1743042646415,-714.13567779,0.000248,2]
[356727335,1743042646424,-503.45441975,0.00024873,2]
[356727337,1743042646433,-504.08441602,0.00024873,2]
[356727338,1743042646442,-500.0,0.00024873,2]
[356727339,1743042646452,-500.0,0.00024873,2]
[356727340,1743042646461,-129713.0,0.000249,2]
[356727341,1743042646469,-151.0,0.000249,7]
[356727342,1743042646479,-151.0,0.000249,7]
[356727343,1743042646487,-151.0,0.000249,2]
[356727344,1743042646496,-151.0,0.000249,2]
[356727345,1743042646505,-151.0,0.000249,7]
[356727346,1743042646514,-151.0,0.000249,7]
[356727347,1743042646523,-186.441899,0.000249,7]
[356727348,1743042646533,-377156.732584,0.000249,2]
[356727349,1743042646542,-151.0,0.000249,7]
[356727350,1743042646551,-191.933448,0.000249,7]
[356727351,1743042646561,-151.0,0.000249,7]
[356727352,1743042646570,-151.0,0.000249,7]
[356727353,1743042646580,-500.0,0.00024973,2]
[356727354,1743042646589,-500.0,0.00024973,2]
[356727355,1743042646599,-503.85309977,0.00024973,2]
[356727357,1743042646608,-500.0,0.00024973,2]
[356727359,1743042646617,-500.95129096,0.00024973,2]
[356727360,1743042646626,-500.0,0.00024973,2]
[356727361,1743042646635,-500.0,0.00024973,2]
[356727362,1743042646645,-151.0,0.0002498,7]
[356727363,1743042646655,-151.0,0.0002498,2]
[356727364,1743042646665,-151.0,0.0002498,7]
[356727365,1743042646674,-151.0,0.0002499,7]
[356727366,1743042646683,-9101.39181742,0.00025,2]
[356727367,1743042646693,-30000.0,0.00025,30]
[356727368,1743042646703,-418.47884548,0.00025,30]
[356727370,1743042646712,-2498.20952118,0.00025003,5]
[356727371,1743042646721,-160.0,0.00025145,2]
[356727372,1743042646730,-160.0,0.00025145,2]
[356727373,1743042646740,-834.95724862,0.00025219,2]
[356727374,1743042646749,-500.0,0.00025336,2]
[356727375,1743042646759,-174.00873452,0.00025373,2]
[356727376,1743042646769,-151.0,0.00025415,7]
[356727377,1743042646777,-1002.2305888,0.00025425,2]
[356727378,1743042646787,-151.0,0.00025436,7]
[356727379,1743042646797,-151.0,0.00025445,7]
[356727380,1743042646806,-328.69539755,0.00025473,2]
[356727381,1743042646815,-152.05624,0.00025473,7]
[356727382,1743042646825,-151.0,0.00025473,2]
[356727383,1743042646834,-151.0,0.00025473,7]
[356727384,1743042646843,-626.34,0.00025536,3]
[356727385,1743042646853,-191.33796357,0.00025545,2]
[356727386,1743042646862,-130073.01553475,0.00025556,4]
[356727387,1743042646872,-151.0,0.00025556,7]
[356727388,1743042646881,-151.0,0.00025556,2]
[356727389,1743042646891,-151.0,0.00025556,7]
[356727390,1743042646900,-151.0,0.00025556,7]
[356727391,1743042646910,-500.96155485,0.00025573,2]
[356727392,1743042646919,-160.0,0.00025637,2]
[356727393,1743042646928,-151.0,0.000258,16]
[356727394,1743042646938,-2498.20952118,0.00025831,6]
[356727395,1743042646950,-2000.0,0.00026,2]
[356727396,1743042646959,-59000.0,0.00026,2]
[356727397,1743042646968,-226.18175,0.00026,7]
[356727398,1743042646978,-1723.96253212,0.00026,30]
[356727399,1743042646987,-152.742569,0.00026,7]
[356727400,1743042646997,-268.71656,0.00026141,2]
[356727401,1743042647007,-151.0,0.00026141,7]
[356727402,1743042647016,-500.0,0.00026173,2]
[356727403,1743042647026,-667.49605955,0.00026344,2]
[356727404,1743042647035,-500.0,0.00026465,2]
[356727405,1743042647045,-500.0,0.000266,2]
[356727406,1743042647054,-1002.374925,0.000266,2]
[356727407,1743042647063,-201.595,0.00026624,14]
[356727408,1743042647073,-370.0,0.00026627,2]
[356727409,1743042647087,-382.00000002,0.00026627,2]
[356727410,1743042647097,-2498.20952118,0.00026659,6]
[356727411,1743042647107,-170.667703,0.00027397,2]
[356727412,1743042647118,-2498.20952118,0.00027486,7]
[356727413,1743042647128,-418.47884548,0.00028,3]
[356727414,1743042647137,-151.0,0.000283,15]
[356727415,1743042647147,-2498.20952118,0.00028314,7]
[356727416,1743042647157,-500.0,0.00028369,2]
[356727417,1743042647229,-156.792964,0.00028556,2]
[356727418,1743042647239,-151.0,0.000287,14]
[356727419,1743042647249,-500.0,0.00028821,2]
[356727420,1743042647258,-1160.26220011,0.00029,7]
[356727421,1743042647268,-1160.26220011,0.00029,7]
[356727422,1743042647277,-710.15493489,0.00029,7]
[356727423,1743042647286,-291.59254818,0.00029,7]
[356727424,1743042647295,-291.59254818,0.00029,7]
[356727425,1743042647305,-418.47884548,0.00029,7]
[356727426,1743042647314,-12458.93820146,0.00029,7]
[356727427,1743042647324,-2498.20952118,0.00029141,8]
[356727428,1743042647334,-500.0,0.00029385,2]
[356727429,1743042647343,-501.2582687,0.00029452,5]
[356727430,1743042647353,-1000.0,0.00029452,5]
[356727431,1743042647363,-156.792964,0.00029775,2]
[356727432,1743042647373,-500.0,0.00029842,2]
[356727433,1743042647382,-2498.20952118,0.00029969,9]
[356727434,1743042647392,-259.0,0.0003,30]
[356727435,1743042647402,-710.15493489,0.0003,7]
[356727436,1743042647411,-2260.07788088,0.0003,2]
[356727437,1743042647421,-10334.87979241,0.0003,2]
[356727438,1743042647431,-199.3084723,0.0003,120]
[356727439,1743042647440,-156.0,0.0003,2]
[356727440,1743042647451,-297.0,0.0003,2]
[356727441,1743042647461,-151.168352,0.00030352,7]
[356727442,1743042647471,-1000.0,0.00030352,5]
[356727443,1743042647480,-1000.0,0.00030352,5]
[356727444,1743042647491,-500.0,0.00030396,7]
[356727445,1743042647500,-495.06194734,0.00030452,5]
[356727446,1743042647509,-504.1728092,0.00030452,5]
[356727447,1743042647520,-501.65166615,0.00030452,5]
[356727448,1743042647529,-501.52658653,0.00030452,5]
[356727449,1743042647539,-1000.0,0.00030452,5]
[356727450,1743042647549,-1500.0,0.00030471,5]
[356727451,1743042647559,-1500.0,0.00030471,5]
[356727452,1743042647569,-1500.0,0.00030471,5]
[356727453,1743042647579,-1500.0,0.00030471,5]
[356727454,1743042647589,-1500.0,0.00030471,2]
[356727455,1743042647599,-1500.0,0.00030471,5]
[356727456,1743042647609,-1500.0,0.00030471,5]
[356727457,1743042647619,-180.80064369,0.00030708,6]
[356727458,1743042647629,-626.025778,0.00030724,2]
[356727459,1743042647638,-2498.20952118,0.00030797,9]
[356727460,1743042647648,-161.04527574,0.00031163,5]
[356727461,1743042647658,-500.0,0.00031203,7]
[356727462,1743042647667,-500.0,0.0003121,7]
[356727463,1743042647677,-12458.93820146,0.00031244,2]
[356727464,1743042647687,-418.40181814,0.00031349,2]
[356727465,1743042647696,-1306.6830037,0.00031355,4]
[356727466,1743042647706,-418.47884548,0.000315,3]
[356727467,1743042647715,-12458.93820146,0.000315,3]
[356727468,1743042647725,-500.0,0.00031611,7]
[356727469,1743042647735,-2498.20952118,0.00031624,10]
[356727470,1743042647744,-150.0,0.00031989,2]
[356727471,1743042647754,-270.58,0.00031989,2]
[356727472,1743042647764,-2000000.0,0.00032,2]
[356727473,1743042647774,-160.0,0.00032,3]
[356727474,1743042647783,-160.0,0.00032,3]
[356727475,1743042647793,-150.103,0.00032011,2]
[356727476,1743042647803,-280.716,0.00032011,2]
[356727477,1743042647813,-405.581,0.00032057,2]
[356727478,1743042647823,-543.068,0.00032057,2]
[356727479,1743042647833,-151.288,0.00032057,2]
[356727480,1743042647843,-1017.3561472,0.0003232,30]
[356727481,1743042647853,-2498.20952118,0.00032452,10]
[356727482,1743042647862,-500.0,0.00032643,7]
[356727483,1743042647872,-150.0,0.000328,30]
[356727484,1743042647883,-15021.07544339,0.00032877,5]
[356727485,1743042647892,-500.0,0.00032877,2]
[356727486,1743042647902,-500.0,0.00032877,2]
[356727487,1743042647911,-500.0,0.00032877,7]
[356727488,1743042647921,-500.0,0.00032877,7]
[356727489,1743042647931,-500.0,0.00032877,7]
[356727490,1743042647942,-500.0,0.00032877,7]
[356727491,1743042647952,-500.0,0.00032877,7]
[356727492,1743042647962,-500.0,0.00032877,7]
[356727493,1743042647971,-500.0,0.00032877,7]
[356727494,1743042647981,-500.0,0.00032877,7]
[356727495,1743042647991,-500.0,0.00032877,7]
[356727496,1743042648001,-500.0,0.00032877,7]
[356727497,1743042648010,-397.34672969,0.00032877,7]
[356727498,1743042648020,-500.0,0.00032877,7]
[356727499,1743042648030,-500.0,0.00032877,7]
[356727500,1743042648040,-500.0,0.00032877,7]
[356727501,1743042648050,-500.0,0.00032877,7]
[356727502,1743042648059,-500.0,0.00032877,7]
[356727503,1743042648070,-500.0,0.00032877,7]
[356727504,1743042648084,-500.0,0.00032877,7]
[356727505,1743042648093,-500.0,0.00032877,7]
[356727506,1743042648103,-500.0,0.00032877,7]
[356727507,1743042648113,-515.68594479,0.00032877,7]
[356727508,1743042648124,-515.68594479,0.00032877,7]